bitfinex/quotes_SOLUSD_20240716
["timestamp","ask_amount","ask_price","bid_price","bid_amount"]
[1721116476185,8.07479697,154.81,154.72,15.0168]
[1721116476387,1.61529697,154.81,154.72,15.0168]
[1721116476696,6.4606,154.79,154.72,15.0168]
[1721116476902,1.61547297,154.78,154.72,15.0168]
[1721116477266,6.462,154.75,154.72,15.0168]
[1721116477495,1.6158394,154.74,154.72,15.0168]
[1721116478370,1.61584932,154.75,154.72,15.0168]
[1721116479491,1.61581598,154.76,154.72,15.0168]
[1721116480119,6.4621,154.75,154.72,15.0168]
[1721116480293,1.61590673,154.74,154.72,15.0168]
[1721116480682,6.4616,154.77,154.72,15.0168]
[1721116480683,1.61583861,154.76,154.72,15.0168]
[1721116481586,20.0,154.78,154.72,15.0168]
[1721116481975,43.38,154.83,154.72,15.0168]
[1721116481976,20.0,154.79,154.72,15.0168]
[1721116482175,1.61553617,154.79,154.72,15.0168]
[1721116482588,8.07593617,154.79,154.72,15.0168]
[1721116483693,1.61553617,154.79,154.72,15.0168]
[1721116484002,1.61540972,154.81,154.73,1.29232778]
[1721116484199,6.4604,154.79,154.72,15.0168]
[1721116484406,8.07640494,154.78,154.72,15.0168]
[1721116484613,1.61550307,154.77,154.72,15.0168]
[1721116485600,1.61550268,154.77,154.72,15.0168]
[1721116485810,6.4603,154.8,154.72,15.0168]
[1721116485811,1.61547088,154.79,154.72,15.0168]
[1721116486008,1.61547088,154.79,154.73,1.29151622]
[1721116486805,1.61533016,154.8,154.73,1.29151622]
[1721116486989,1.61532971,154.79,154.73,1.29151622]
[1721116487189,1.61532971,154.79,154.72,15.0168]
[1721116487509,6.4561,154.9,154.78,6.4591]
[1721116487689,11.20818336,154.89,154.79,21.29160752]
[1721116487887,0.62794055,154.89,154.81,16.5847]
[1721116488108,0.62794055,154.89,154.82,1.2915793]
[1721116488297,0.62794055,154.89,154.83,7.8177793]
[1721116489196,0.62794055,154.89,154.83,6.5262]
[1721116489991,0.62794055,154.89,154.83,7.81777798]
[1721116490510,6.4575,154.86,154.83,6.5262]
[1721116490707,0.62794055,154.85,154.83,6.5262]
[1721116491096,6.4587,154.83,154.81,16.5847]
[1721116491302,0.62794055,154.82,154.81,16.5847]
[1721116492320,0.62794055,154.84,154.81,16.5847]
[1721116492688,20.62794055,154.88,154.81,16.5847]
[1721116492884,6.4572,154.87,154.81,16.5847]
[1721116493112,0.62794055,154.86,154.81,16.5847]
[1721116493317,0.62794055,154.85,154.81,16.5847]
[1721116493614,6.4589,154.83,154.77,6.0962]
[1721116493908,62.81,154.86,154.77,6.0962]
[1721116493909,0.62794055,154.82,154.77,6.0962]
[1721116494723,20.62794055,154.85,154.77,6.0962]
[1721116495413,20.62794055,154.85,154.72,6.3963]
[1721116495414,19.43,154.82,154.72,6.3963]
[1721116495589,6.4607,154.78,154.72,6.3963]
[1721116495794,0.62794055,154.77,154.72,6.3963]
[1721116496001,0.62794055,154.76,154.72,6.3963]
[1721116496399,0.62794055,154.76,154.71,16.6488]
[1721116496603,6.462,154.75,154.71,16.6488]
[1721116496804,0.62794055,154.74,154.71,16.6488]
[1721116497021,20.62794055,154.78,154.71,16.6488]
[1721116497399,27.08864055,154.78,154.71,16.6488]
[1721116497995,0.62794055,154.77,154.71,16.6488]
[1721116499705,6.462,154.76,154.71,16.6488]
[1721116500021,0.62794055,154.75,154.71,16.6488]
[1721116500219,7.09034055,154.75,154.71,16.6488]
[1721116500389,0.62794055,154.75,154.71,16.6488]
[1721116500588,39.43,154.79,154.71,16.6488]
[1721116500589,7.08874055,154.78,154.71,16.6488]
[1721116500794,20.0,154.77,154.71,16.6488]
[1721116501026,0.62794055,154.76,154.71,16.6488]
[1721116502820,0.62794055,154.77,154.71,16.6488]
[1721116503021,0.62794055,154.76,154.71,16.6488]
[1721116504304,6.4621,154.75,154.71,16.6488]
[1721116504514,0.62794055,154.74,154.71,16.6488]
[1721116504710,0.62794055,154.73,154.68,6.3963]
[1721116504916,20.0,154.76,154.68,6.3963]
[1721116505303,6.4629,154.73,154.68,6.3963]
[1721116505898,7.09134055,154.72,154.68,6.3963]
[1721116506115,0.62794055,154.72,154.68,6.3963]
[1721116506432,6.4641,154.7,154.67,16.3982]
[1721116506725,0.62794055,154.69,154.67,16.3982]
[1721116506901,16.154,154.76,154.67,16.3982]
[1721116506902,6.4636,154.72,154.67,16.3982]
[1721116507106,20.62794055,154.71,154.67,16.3982]
[1721116507700,0.62794055,154.71,154.64,6.5487]
[1721116507915,6.4649,154.68,154.64,6.5487]
[1721116508127,0.62794055,154.67,154.64,6.5487]
[1721116508299,0.62794055,154.67,154.63,15.846]
[1721116508714,20.62794055,154.67,154.63,15.846]
[1721116509222,20.62794055,154.67,154.6,6.1527]
[1721116509428,0.62794055,154.66,154.6,6.1527]
[1721116509603,20.62794055,154.66,154.6,6.1527]
[1721116509798,27.09404055,154.66,154.6,6.1527]
[1721116510006,20.62794055,154.66,154.6,6.1527]
[1721116510313,6.4665,154.65,154.6,6.1527]
[1721116510513,0.62794055,154.64,154.6,6.1527]
[1721116511625,0.62794055,154.66,154.6,6.1527]
[1721116512523,0.62794055,154.67,154.6,6.1527]
[1721116513322,0.62794055,154.67,154.61,16.3915]
[1721116513504,20.62794055,154.7,154.61,16.3915]
[1721116513704,0.62794055,154.7,154.62,6.5407]
[1721116513906,0.62794055,154.73,154.64,6.5407]
[1721116514122,0.62794055,154.73,154.66,16.3915]
[1721116514309,0.62794055,154.77,154.67,7.83343048]
[1721116514517,0.62794055,154.76,154.67,6.5407]
[1721116514717,6.4603,154.79,154.67,6.5407]
[1721116515012,6.461,154.78,154.67,6.5407]
[1721116515514,6.73384406,154.81,154.67,6.5407]
[1721116515515,6.4604,154.79,154.67,6.5407]
[1721116515728,0.62794055,154.78,154.67,6.5407]
[1721116516432,7.08864055,154.78,154.67,6.5407]
[1721116517235,6.4614,154.77,154.67,6.5407]
[1721116517437,0.62794055,154.76,154.67,6.5407]
[1721116517674,0.62794055,154.76,154.68,1.29270759]
[1721116517948,20.62794055,154.79,154.69,23.57233396]
[1721116518118,20.62794055,154.79,154.69,22.2799]
[1721116518644,0.62794055,154.79,154.69,22.2799]
[1721116518811,6.4608,154.78,154.69,22.2799]
[1721116519016,0.62794055,154.77,154.69,22.2799]
[1721116519223,0.62794055,154.76,154.69,22.2799]
[1721116519744,7.08974055,154.76,154.69,22.2799]
[1721116520331,0.62794055,154.75,154.69,22.2799]
[1721116520831,6.4612,154.77,154.69,22.2799]
[1721116521043,0.62794055,154.76,154.69,22.2799]
[1721116522119,0.62794055,154.76,154.7,1.29256891]
[1721116522345,0.62794055,154.76,154.71,1.2925237]
[1721116522513,20.62794055,154.8,154.71,1.2925237]
[1721116522717,0.62794055,154.79,154.69,22.2799]
[1721116523441,0.62794055,154.79,154.7,1.29244675]
[1721116523638,0.62794055,154.81,154.69,22.2799]
[1721116523945,7.08744055,154.81,154.69,22.2799]
[1721116524244,7.08744055,154.81,154.71,21.4318]
[1721116524245,0.62794055,154.81,154.71,21.4318]
[1721116524547,0.62794055,154.81,154.73,21.7983]
[1721116524743,7.08664055,154.83,154.73,21.7983]
[1721116524944,0.62794055,154.82,154.73,21.7983]
[1721116525166,7.08714055,154.82,154.73,21.7983]
[1721116525845,0.62794055,154.81,154.73,21.7983]
[1721116526037,0.62794055,154.83,154.73,21.7983]
[1721116526249,6.4587,154.83,154.73,21.7983]
[1721116526433,0.62794055,154.82,154.73,21.7983]
[1721116527232,0.62794055,154.86,154.76,6.5084]
[1721116527454,0.62794055,154.85,154.78,15.0977]
[1721116527631,7.08454055,154.88,154.79,1.29183036]
[1721116527956,7.08454055,154.88,154.8,1.29178774]
[1721116528143,7.08454055,154.88,154.81,6.5084]
[1721116528335,0.62794055,154.88,154.81,6.5084]
[1721116528533,0.62794055,154.88,154.82,45.0]
[1721116528933,0.62794055,154.88,154.83,16.4464]
[1721116529132,7.08374055,154.9,154.83,16.4464]
[1721116529458,0.62794055,154.89,154.83,16.4464]
[1721116529658,0.62794055,154.89,154.84,0.67360935]
[1721116529871,0.62794055,154.92,154.84,45.0]
[1721116530203,0.62794055,154.92,154.84,46.27387035]
[1721116530651,0.62794055,154.92,154.84,45.0]
[1721116530827,0.62794055,154.95,154.84,46.29137724]
[1721116531030,20.62794055,154.95,154.84,46.29137724]
[1721116531255,6.4549,154.92,154.84,46.29137724]
[1721116531454,0.62794055,154.91,154.85,1.291394]
[1721116532250,0.62794055,154.91,154.84,45.0]
[1721116532456,0.62794055,154.91,154.84,46.29137683]
[1721116532764,6.73630465,154.96,154.86,22.2367]
[1721116532941,6.73630465,154.96,154.87,45.0]
[1721116533134,6.4528,154.97,154.87,45.0]
[1721116533345,6.4528,154.97,154.88,1.28089955]
[1721116533556,13.19142585,154.99,154.88,1.28089955]
[1721116533757,6.4524,154.99,154.89,6.584]
[1721116533940,6.4524,154.98,154.9,62.70135768]
[1721116534141,6.4528,154.97,154.9,61.4104]
[1721116534343,6.4524,154.98,154.9,61.4104]
[1721116535056,20.0,154.97,154.9,61.4104]
[1721116535263,26.1676129,155.02,154.91,1.29095602]
[1721116535447,6.4512,155.01,154.91,1.29087252]
[1721116535759,6.4507,155.02,154.92,6.3643]
[1721116536055,6.4507,155.02,154.93,46.2906104]
[1721116536684,15.0,155.06,154.94,17.69269062]
[1721116536881,6.4496,155.05,154.95,45.0]
[1721116537076,6.4496,155.05,154.96,1.29044585]
[1721116537266,6.4496,155.05,154.97,6.1947]
[1721116537474,6.4496,155.05,154.98,45.0]
[1721116537665,0.7943647,155.07,154.98,45.0]
[1721116537867,0.7943647,155.07,154.99,16.4021]
[1721116538072,0.7943647,155.07,155.0,45.0]
[1721116539085,6.4497,155.05,154.99,16.4021]
[1721116539785,20.2243647,155.07,154.99,16.4021]
[1721116540087,6.45,155.04,154.99,16.4021]
[1721116540385,39.43,155.06,154.97,6.1947]
[1721116540584,6.4506,155.03,154.97,6.1947]
[1721116540756,6.4507,155.02,154.97,6.1947]
[1721116541192,45.0,155.05,154.97,6.1947]
[1721116541490,6.4515,155.01,154.97,6.1947]
[1721116541875,6.4507,155.03,154.97,6.1947]
[1721116542084,26.45,155.04,154.97,6.1947]
[1721116542289,26.4499,155.04,154.97,6.1947]
[1721116542885,6.4491,155.06,154.97,6.1947]
[1721116543078,44.1743647,155.07,154.97,6.1947]
[1721116543079,20.0,155.05,154.97,6.1947]
[1721116543384,6.45,155.04,154.97,6.1947]
[1721116543690,26.4494,155.06,154.97,6.1947]
[1721116543871,6.4495,155.05,154.97,6.1947]
[1721116544189,6.4499,155.04,154.97,6.1947]
[1721116544390,26.4494,155.06,154.97,6.1947]
[1721116544990,26.4495,155.06,154.97,6.1947]
[1721116545460,20.0,155.06,154.97,6.1947]
[1721116545668,6.4497,155.05,154.97,6.1947]
[1721116545967,6.4497,155.05,154.98,15.8312]
[1721116546169,20.0,155.06,154.98,15.8312]
[1721116546375,20.0,155.06,154.98,17.12147291]
[1721116546575,20.0,155.06,154.98,15.8312]
[1721116547189,6.4496,155.05,154.98,15.8312]
[1721116548071,20.0,155.06,154.98,15.8312]
[1721116548388,26.4494,155.06,154.98,15.8312]
[1721116548689,6.4506,155.03,154.98,15.8312]
[1721116548869,45.0,155.05,154.98,15.8312]
[1721116548870,20.0,155.06,154.98,15.8312]
[1721116549075,39.43,155.06,154.98,15.8312]
[1721116550103,6.4517,155.0,154.98,15.8312]
[1721116550688,43.38,155.04,154.98,15.8312]
[1721116550689,6.4511,155.02,154.98,15.8312]
[1721116551387,6.4512,155.01,154.98,15.8312]
[1721116551570,6.4508,155.02,154.98,15.8312]
[1721116552191,6.4494,155.06,154.98,15.8312]
[1721116552579,6.4497,155.05,154.98,15.8312]
[1721116552787,44.1743647,155.07,154.98,15.8312]
[1721116552971,6.45,155.04,154.98,15.8312]
[1721116553172,6.4495,155.05,154.98,15.8312]
[1721116553366,50.6232647,155.07,154.98,15.8312]
[1721116553686,50.6232647,155.07,154.99,45.0]
[1721116553687,6.4494,155.06,154.99,45.0]
[1721116553882,6.45,155.04,154.98,15.8312]
[1721116554200,0.7943647,155.07,154.98,15.8312]
[1721116554566,6.4491,155.06,154.98,15.8312]
[1721116554797,6.4491,155.06,154.99,45.0]
[1721116555479,7.2430647,155.07,154.99,45.0]
[1721116555690,20.0,155.06,154.99,45.0]
[1721116556006,20.0,155.06,154.98,15.8312]
[1721116556179,0.7943647,155.07,154.98,15.8312]
[1721116556180,6.4507,155.03,154.98,15.8312]
[1721116556370,20.2243647,155.07,154.98,15.8312]
[1721116556576,65.0,155.06,154.98,15.8312]
[1721116556790,6.4499,155.04,154.98,15.8312]
[1721116556995,20.0,155.06,154.98,15.8312]
[1721116557184,6.4505,155.03,154.98,15.8312]
[1721116557377,6.4509,155.02,154.98,15.8312]
[1721116557577,6.4508,155.02,154.98,15.8312]
[1721116557785,16.1231,155.06,154.98,15.8312]
[1721116557973,20.0,155.05,154.98,15.8312]
[1721116559068,6.4508,155.02,154.98,15.8312]
[1721116559789,20.0,155.05,154.98,15.8312]
[1721116559984,6.4499,155.04,154.98,15.8312]
[1721116560193,6.4503,155.03,154.98,15.8312]
[1721116560390,6.4496,155.05,154.98,15.8312]
[1721116560801,0.7943647,155.07,154.98,15.8312]
[1721116560802,6.4491,155.06,154.98,15.8312]
[1721116561005,6.4504,155.03,154.98,15.8312]
[1721116561297,6.4512,155.01,154.98,15.8312]
[1721116561809,19.43,155.0,154.84,6.4724]
[1721116561978,43.38,154.86,154.81,6.74139983]
[1721116562178,43.38,154.86,154.78,6.4724]
[1721116562390,20.0,154.85,154.78,6.4724]
[1721116562587,26.4579,154.85,154.78,6.4724]
[1721116562791,6.4586,154.84,154.78,6.4724]
[1721116563000,20.0,154.85,154.78,6.4724]
[1721116563677,43.38,154.83,154.78,6.4724]
[1721116564007,49.839,154.83,154.78,6.4724]
[1721116564997,26.4582,154.85,154.78,6.4724]
[1721116565208,20.0,154.85,154.78,6.4724]
[1721116565385,26.4578,154.85,154.78,6.4724]
[1721116565790,6.4583,154.84,154.78,6.4724]
[1721116566195,20.0,154.85,154.78,6.4724]
[1721116566401,6.4591,154.82,154.78,6.4724]
[1721116566806,6.4586,154.84,154.78,6.4724]
[1721116567314,26.458,154.85,154.78,6.4724]
[1721116567498,20.0,154.85,154.78,6.4724]
[1721116567724,20.0,154.88,154.78,6.4724]
[1721116568187,39.43,154.88,154.78,6.4724]
[1721116568388,6.4581,154.85,154.78,6.4724]
[1721116568913,20.0,154.88,154.78,6.4724]
[1721116569212,6.4582,154.85,154.78,6.4724]
[1721116569582,6.4582,154.85,154.79,45.0]
[1721116569779,6.4582,154.85,154.78,6.4724]
[1721116569780,43.38,154.86,154.78,6.4724]
[1721116570012,20.0,154.85,154.78,6.4724]
[1721116571079,6.4583,154.84,154.78,6.4724]
[1721116572001,20.0,154.85,154.78,6.4724]
[1721116572203,45.0,154.84,154.78,6.4724]
[1721116572407,6.4599,154.8,154.78,6.4724]
[1721116572584,6.4608,154.78,154.74,15.9402]
[1721116572907,63.38,154.83,154.74,15.9402]
[1721116573117,6.4599,154.8,154.74,15.9402]
[1721116573330,6.4604,154.79,154.74,15.9402]
[1721116573605,82.81,154.83,154.74,15.9402]
[1721116573801,6.4612,154.77,154.74,15.9402]
[1721116574409,6.4608,154.78,154.74,15.9402]
[1721116574608,63.38,154.83,154.74,15.9402]
[1721116574909,6.4595,154.81,154.74,15.9402]
[1721116575114,20.0,154.8,154.74,15.9402]
[1721116575307,26.46,154.8,154.74,15.9402]
[1721116575603,20.0,154.8,154.74,15.9402]
[1721116575808,50.12514046,154.86,154.74,17.23071682]
[1721116575995,6.459,154.83,154.75,45.0]
[1721116576201,26.4592,154.82,154.75,45.0]
[1721116576394,6.4592,154.82,154.75,45.0]
[1721116577744,6.4584,154.84,154.76,1.29215144]
[1721116578297,20.0,154.85,154.75,45.0]
[1721116578298,6.4591,154.82,154.75,45.0]
[1721116579101,43.38,154.89,154.76,7.55025324]
[1721116579316,6.4565,154.89,154.78,15.7142]
[1721116579499,6.4565,154.89,154.79,45.0]
[1721116579694,6.4565,154.89,154.81,6.2631]
[1721116579911,6.4565,154.89,154.82,45.0]
[1721116580239,43.38,154.92,154.82,46.29164863]
[1721116580398,59.514,154.96,154.82,46.29164863]
[1721116580399,35.5662,154.94,154.82,45.0]
[1721116580599,43.38,154.93,154.82,45.0]
[1721116581321,43.38,154.96,154.83,15.36]
[1721116581521,43.38,154.96,154.84,45.0]
[1721116581720,6.4553,154.92,154.84,45.0]
[1721116581894,16.1355,154.94,154.84,45.0]
[1721116582414,20.0,154.93,154.84,45.0]
[1721116582732,6.4566,154.88,154.83,15.36]
[1721116582895,39.43,154.93,154.83,15.36]
[1721116582896,6.4572,154.87,154.83,15.36]
[1721116583101,6.4566,154.88,154.83,15.36]
[1721116583400,43.38,154.9,154.83,15.36]
[1721116583600,20.0,154.89,154.83,15.36]
[1721116583824,26.4562,154.89,154.83,15.36]
[1721116584809,6.4566,154.88,154.83,15.36]
[1721116585330,6.4575,154.86,154.83,15.36]
[1721116585700,26.4564,154.89,154.83,15.36]
[1721116586217,6.4567,154.88,154.83,15.36]
[1721116587120,20.0,154.89,154.83,15.36]
[1721116587305,6.4561,154.9,154.83,15.36]
[1721116587621,62.81,154.93,154.83,15.36]
[1721116587622,26.4562,154.89,154.83,15.36]
[1721116587921,6.4562,154.89,154.83,15.36]
[1721116588220,6.457,154.87,154.83,15.36]
[1721116589516,6.4575,154.86,154.83,15.36]
[1721116589819,35.5712,154.89,154.81,6.2631]
[1721116590022,6.4582,154.84,154.81,6.2631]
[1721116590206,6.4587,154.83,154.81,6.2631]
[1721116590907,6.4591,154.82,154.81,6.2631]
[1721116591225,35.5737,154.86,154.79,15.4403]
[1721116591421,6.4596,154.81,154.79,15.4403]
[1721116591625,6.4591,154.82,154.79,15.4403]
[1721116591806,6.4591,154.82,154.77,6.383]
[1721116593302,6.4587,154.83,154.77,6.383]
[1721116594004,43.38,154.84,154.77,6.383]
[1721116594207,20.0,154.83,154.77,6.383]
[1721116594532,6.4599,154.8,154.77,6.383]
[1721116594829,6.4603,154.79,154.77,6.383]
[1721116595037,6.4612,154.77,154.75,16.2911]
[1721116595211,6.4612,154.77,154.73,6.1904]
[1721116595722,6.4607,154.79,154.73,6.1904]
[1721116596040,6.4609,154.78,154.73,6.1904]
[1721116596542,20.0,154.83,154.74,46.29256828]
[1721116596718,43.38,154.87,154.74,46.29256828]
[1721116596918,6.4577,154.86,154.74,46.29256828]
[1721116597124,6.4577,154.86,154.75,15.6859]
[1721116597431,6.4578,154.85,154.76,45.0]
[1721116597635,6.4584,154.84,154.76,45.0]
[1721116597933,6.4587,154.83,154.76,45.0]
[1721116598105,6.4596,154.81,154.76,45.0]
[1721116598305,6.4601,154.8,154.75,15.6859]
[1721116598506,6.4595,154.81,154.75,15.6859]
[1721116599305,85.69156532,154.87,154.75,15.6859]
[1721116599306,6.73816532,154.87,154.75,15.6859]
[1721116599522,20.0,154.86,154.76,7.54843521]
[1721116599725,20.0,154.86,154.77,45.0]
[1721116599927,26.4575,154.86,154.77,45.0]
[1721116600307,6.4582,154.84,154.77,45.0]
[1721116600543,20.0,154.86,154.77,45.0]
[1721116600840,20.0,154.87,154.77,46.29196291]
[1721116601710,20.0,154.87,154.77,45.0]
[1721116602133,6.4582,154.85,154.77,45.0]
[1721116602335,20.0,154.87,154.77,45.0]
[1721116602529,26.4573,154.87,154.77,46.29184641]
[1721116602728,26.4573,154.87,154.78,22.4154]
[1721116602729,20.0,154.87,154.78,22.4154]
[1721116602923,6.4566,154.88,154.79,45.0]
[1721116603235,59.5192,154.91,154.79,45.0]
[1721116603416,6.457,154.87,154.79,45.0]
[1721116603620,6.4563,154.89,154.79,45.0]
[1721116604528,45.91422551,154.97,154.79,45.0]
[1721116604529,6.4544,154.94,154.81,6.5194]
[1721116604726,6.4544,154.94,154.83,22.3103]
[1721116604937,62.81,154.98,154.84,45.0]
[1721116604938,16.1335,154.96,154.84,45.0]
[1721116605311,6.4545,154.93,154.84,45.0]
[1721116605914,6.455,154.92,154.84,45.0]
[1721116606225,62.81,154.98,154.84,45.0]
[1721116606226,6.4544,154.94,154.85,1.29132558]
[1721116606735,6.4545,154.93,154.85,1.29132558]
[1721116607042,62.81,154.98,154.84,45.0]
[1721116607043,6.4549,154.92,154.84,45.0]
[1721116607212,6.4545,154.93,154.85,1.29128526]
[1721116607413,6.4541,154.94,154.85,1.29128526]
[1721116607809,6.4536,154.96,154.86,1.29125552]
[1721116608034,20.0,154.95,154.86,46.29125552]
[1721116608241,20.0,154.95,154.86,45.0]
[1721116608747,20.0,154.97,154.87,20.0]
[1721116608918,26.4532,154.97,154.89,22.7697]
[1721116609113,26.4532,154.97,154.9,45.0]
[1721116609114,6.4533,154.96,154.9,45.0]
[1721116609313,26.4537,154.95,154.89,22.7697]
[1721116609613,26.4532,154.97,154.89,22.7697]
[1721116610017,6.4533,154.96,154.89,22.7697]
[1721116610215,20.0,154.95,154.89,22.7697]
[1721116610441,26.4537,154.95,154.89,22.7697]
[1721116611116,20.0,154.95,154.89,22.7697]
[1721116611318,20.0,154.96,154.89,22.7697]
[1721116611551,26.4533,154.96,154.89,22.7697]
[1721116611757,20.0,154.96,154.89,22.7697]
[1721116612053,20.0,154.97,154.9,45.0]
[1721116612562,20.0,154.97,154.9,46.29091352]
[1721116612731,26.4529,154.97,154.9,46.29091352]
[1721116612931,6.4529,154.97,154.9,46.29091352]
[1721116613355,6.4529,154.97,154.91,20.0]
[1721116613753,6.4529,154.97,154.91,21.29091259]
[1721116614433,6.8225087,154.99,154.91,21.29091259]
[1721116614639,6.8225087,154.99,154.92,45.0]
[1721116614844,6.8225087,154.99,154.93,1.29077215]
[1721116615034,6.8225087,154.99,154.92,46.29076405]
[1721116615547,6.4526,154.98,154.92,46.29076405]
[1721116616161,0.3701087,154.99,154.91,20.0]
[1721116616472,0.3701087,154.99,154.89,22.7697]
[1721116616473,6.4533,154.96,154.9,20.0]
[1721116616636,6.4529,154.97,154.91,45.0]
[1721116617958,6.4525,154.98,154.91,45.0]
[1721116618275,6.4525,154.98,154.9,20.0]
[1721116618276,38.46,154.98,154.89,22.7697]
[1721116618448,6.454,154.95,154.89,22.7697]
[1721116618658,6.4541,154.94,154.89,22.7697]
[1721116618964,6.4545,154.93,154.89,22.7697]
[1721116619543,44.9137,154.95,154.89,22.7697]
[1721116619750,38.46,154.95,154.89,22.7697]
[1721116620464,6.4537,154.95,154.89,22.7697]
[1721116620666,26.4532,154.97,154.89,22.7697]
[1721116620865,6.454,154.95,154.89,22.7697]
[1721116621162,6.4549,154.92,154.89,22.7697]
[1721116621670,6.4555,154.91,154.89,22.7697]
[1721116621842,6.455,154.92,154.89,22.7697]
[1721116622049,6.4551,154.92,154.89,22.7697]
[1721116622259,6.4555,154.91,154.89,22.7697]
[1721116622789,6.4557,154.9,154.85,21.6876]
[1721116623071,6.4562,154.89,154.85,21.6876]
[1721116623282,6.4567,154.88,154.85,6.25]
[1721116623572,62.7,154.93,154.85,6.25]
[1721116623573,6.457,154.87,154.85,6.25]
[1721116623776,6.4566,154.88,154.85,6.25]
[1721116624142,43.27,154.9,154.85,6.25]
[1721116624368,6.457,154.87,154.85,6.25]
[1721116625162,6.4566,154.88,154.85,6.25]
[1721116627848,6.4571,154.87,154.85,6.25]
[1721116628277,62.7,154.9,154.81,21.8081]
[1721116628445,6.4578,154.85,154.81,21.8081]
[1721116628847,39.43,154.89,154.81,6.3705]
[1721116628848,6.4587,154.83,154.81,6.3705]
[1721116629069,6.4591,154.82,154.77,22.4841]
[1721116629273,6.4602,154.8,154.77,22.4841]
[1721116629567,6.4594,154.82,154.77,22.4841]
[1721116629778,6.4587,154.83,154.77,22.4841]
[1721116629978,49.7283,154.84,154.77,22.4841]
[1721116630150,20.0,154.83,154.77,22.4841]
[1721116630656,26.4588,154.83,154.77,22.4841]
[1721116631387,20.0,154.83,154.77,22.4841]
[1721116631548,6.4599,154.8,154.77,22.4841]
[1721116631951,6.4595,154.82,154.77,22.4841]
[1721116632165,20.0,154.81,154.77,22.4841]
[1721116632476,26.4595,154.81,154.77,22.4841]
[1721116633352,20.0,154.81,154.77,22.4841]
[1721116633555,20.0,154.82,154.77,22.4841]
[1721116633769,26.4593,154.82,154.77,22.4841]
[1721116633962,6.4597,154.81,154.77,22.4841]
[1721116634173,6.46,154.8,154.77,22.4841]
[1721116634377,26.4595,154.82,154.77,22.4841]
[1721116635590,6.4595,154.81,154.77,22.4841]
[1721116637762,6.46,154.8,154.77,22.4841]
[1721116639585,20.0,154.82,154.77,22.4841]
[1721116639787,43.27,154.81,154.73,21.7987]
[1721116639974,6.4617,154.76,154.73,21.7987]
[1721116640373,6.462,154.75,154.73,21.7987]
[1721116640678,6.4616,154.76,154.73,21.7987]
[1721116640904,6.462,154.75,154.73,21.7987]
[1721116641069,39.43,154.8,154.73,21.7987]
[1721116641607,6.4636,154.72,154.64,15.0528]
[1721116641903,6.4628,154.73,154.64,21.3517]
[1721116643581,6.4624,154.74,154.65,45.0]
[1721116643799,58.58,154.8,154.68,16.2233]
[1721116643972,38.58,154.8,154.69,46.29266828]
[1721116644175,38.58,154.8,154.69,45.0]
[1721116644410,6.4612,154.77,154.69,45.0]
[1721116644585,6.4607,154.79,154.69,46.29271514]
[1721116644979,45.31906364,154.83,154.7,26.1812]
[1721116645201,45.31906364,154.83,154.72,16.3414]
[1721116645202,6.73906364,154.83,154.72,16.3414]
[1721116645404,53.8525,154.88,154.73,6.1812]
[1721116645711,6.4579,154.85,154.75,38.58]
[1721116646005,6.4582,154.85,154.77,16.4692]
[1721116646221,38.58,154.88,154.78,45.0]
[1721116646412,6.4595,154.81,154.78,45.0]
[1721116646781,6.459,154.83,154.78,45.0]